[Event "The Schackveckan 2023: Göteborg open"]
[Site "Göteborgs schackcentrum, Vegagatan 20, Gothenburg, Sweden"]
[Date "2023.08.11"]
[Round "3.12"]
[White "Johansson, Jan"]
[Black "Westlund, Tim"]
[Result "0-1"]
[TimeControl "15 minutes + 5 seconds per move from move one (Round 1 - 4) / 90 minutes + 30 seconds per move from move one (Round 5 - 8)"]
[WhiteFideId "1747568"]
[BlackFideId "1754718"]
[WhiteElo "1694"]
[BlackElo "1861"]

1. d4 {[%clk 00:15:08]} {[%emt 00:00:02]} Nf6 {[%clk 00:15:09]} {[%emt
00:00:02]} 2. Bf4 {[%clk 00:15:10]} {[%emt 00:00:03]} b6 {[%clk 00:15:13]}
{[%emt 00:00:01]} 3. e3 {[%clk 00:15:06]} {[%emt 00:00:09]} Bb7 {[%clk
00:15:16]} {[%emt 00:00:02]} 4. c3 {[%clk 00:15:03]} {[%emt 00:00:07]} d6
{[%clk 00:15:19]} {[%emt 00:00:02]} 5. Nf3 {[%clk 00:15:04]} {[%emt 00:00:04]}
Nbd7 {[%clk 00:15:22]} {[%emt 00:00:01]} 6. Nbd2 {[%clk 00:15:03]} {[%emt
00:00:06]} g6 {[%clk 00:15:26]} {[%emt 00:00:02]} 7. Be2 {[%clk 00:14:54]}
{[%emt 00:00:15]} Bg7 {[%clk 00:15:29]} {[%emt 00:00:02]} 8. h3 {[%clk
00:14:53]} {[%emt 00:00:06]} O-O {[%clk 00:15:28]} {[%emt 00:00:05]} 9. O-O
{[%clk 00:14:55]} {[%emt 00:00:03]} Qe8 {[%clk 00:15:32]} 10. Qc2 {[%clk
00:13:47]} {[%emt 00:01:12]} e5 {[%clk 00:15:32]} {[%emt 00:00:06]} 11. dxe5
{[%clk 00:13:51]} {[%emt 00:00:01]} dxe5 {[%clk 00:15:33]} {[%emt 00:00:04]} 12.
Bh2 {[%clk 00:13:46]} {[%emt 00:00:09]} Nh5 {[%clk 00:14:56]} {[%emt 00:00:43]}
13. Rfe1 {[%clk 00:13:23]} {[%emt 00:00:28]} f5 {[%clk 00:14:02]} {[%emt
00:00:59]} 14. Ng5 {[%clk 00:11:00]} {[%emt 00:02:27]} Nc5 {[%clk 00:11:32]}
{[%emt 00:02:36]} 15. b4 {[%clk 00:10:50]} {[%emt 00:00:16]} h6 {[%clk
00:10:32]} {[%emt 00:01:04]} 16. Bc4+ {[%clk 00:09:47]} {[%emt 00:01:09]} Kh8
{[%clk 00:10:28]} {[%emt 00:00:08]} 17. Nf7+ {[%clk 00:08:28]} {[%emt
00:01:25]} Rxf7 {[%clk 00:10:31]} {[%emt 00:00:02]} 18. Bxf7 {[%clk 00:08:31]}
{[%emt 00:00:02]} Qxf7 {[%clk 00:10:34]} {[%emt 00:00:01]} 19. bxc5 {[%clk
00:08:35]} {[%emt 00:00:02]} f4 {[%clk 00:10:02]} {[%emt 00:00:38]} 20. Qb3
{[%clk 00:07:28]} {[%emt 00:01:12]} Bd5 {[%clk 00:08:39]} {[%emt 00:01:27]} 21.
c4 {[%clk 00:07:20]} {[%emt 00:00:14]} Bc6 {[%clk 00:08:33]} {[%emt 00:00:10]}
22. Rad1 {[%clk 00:06:52]} {[%emt 00:00:33]} Qf6 {[%clk 00:07:24]} {[%emt
00:01:14]} 23. cxb6 {[%clk 00:06:22]} {[%emt 00:00:36]} axb6 {[%clk 00:06:50]}
{[%emt 00:00:39]} 24. Qb2 {[%clk 00:06:11]} {[%emt 00:00:14]} Qg5 {[%clk
00:05:45]} {[%emt 00:01:11]} 25. e4 {[%clk 00:06:07]} {[%emt 00:00:09]} Rf8
{[%clk 00:05:04]} {[%emt 00:00:47]} 26. Nf3 {[%clk 00:06:07]} {[%emt 00:00:04]}
Qf6 {[%clk 00:04:59]} {[%emt 00:00:11]} 27. Rd3 {[%clk 00:05:00]} {[%emt
00:01:11]} g5 {[%clk 00:04:43]} {[%emt 00:00:21]} 28. Qe2 {[%clk 00:04:21]}
{[%emt 00:00:44]} Qg6 {[%clk 00:04:31]} {[%emt 00:00:17]} 29. Ra3 {[%clk
00:03:05]} {[%emt 00:01:22]} Bd7 {[%clk 00:03:55]} {[%emt 00:00:40]} 30. Ra7
{[%clk 00:02:50]} {[%emt 00:00:20]} g4 {[%clk 00:03:27]} {[%emt 00:00:32]} 31.
hxg4 {[%clk 00:02:24]} {[%emt 00:00:32]} Bxg4 {[%clk 00:03:19]} {[%emt
00:00:12]} 32. Rxc7 {[%clk 00:02:26]} {[%emt 00:00:04]} Bf6 {[%clk 00:03:06]}
{[%emt 00:00:17]} 33. Rc6 {[%clk 00:02:06]} {[%emt 00:00:26]} Rg8 {[%clk
00:02:44]} {[%emt 00:00:26]} 34. Nxe5 {[%clk 00:01:32]} {[%emt 00:00:39]} Bxe2
{[%clk 00:02:04]} {[%emt 00:00:45]} 35. Nxg6+ {[%clk 00:01:35]} {[%emt
00:00:02]} Rxg6 {[%clk 00:02:07]} {[%emt 00:00:03]} 36. Rxe2 {[%clk 00:00:45]}
{[%emt 00:00:55]} f3 {[%clk 00:02:04]} {[%emt 00:00:08]} 37. Rd2 {[%clk
00:00:35]} {[%emt 00:00:14]} Rxg2+ {[%clk 00:01:53]} {[%emt 00:00:15]} 38. Kh1
{[%clk 00:00:38]} {[%emt 00:00:02]} Bh4 {[%clk 00:01:17]} {[%emt 00:00:42]} 39.
Rd7 {[%clk 00:00:35]} {[%emt 00:00:09]} Nf6 {[%clk 00:00:28]} {[%emt 00:00:54]}
40. Be5 {[%clk 00:00:22]} {[%emt 00:00:18]} Rg6 {[%clk 00:00:25]} {[%emt
00:00:07]} 41. Rc8+ {[%clk 00:00:25]} {[%emt 00:00:03]} Rg8 {[%clk 00:00:25]}
{[%emt 00:00:05]} 42. Rcc7 {[%clk 00:00:20]} {[%emt 00:00:10]} Rg6 {[%clk
00:00:21]} {[%emt 00:00:06]} 43. Rd8+ {[%clk 00:00:17]} {[%emt 00:00:11]} Rg8
{[%clk 00:00:23]} {[%emt 00:00:03]} 44. Rxg8+ {[%clk 00:00:12]} {[%emt
00:00:09]} Kxg8 {[%clk 00:00:25]} {[%emt 00:00:03]} 45. Bxf6 {[%clk 00:00:13]}
{[%emt 00:00:04]} Bxf6 {[%clk 00:00:28]} {[%emt 00:00:02]} 46. Kh2 {[%clk
00:00:16]} {[%emt 00:00:02]} Be5+ {[%clk 00:00:32]} {[%emt 00:00:02]} 47. Kh3
{[%clk 00:00:15]} {[%emt 00:00:05]} Bxc7 {[%clk 00:00:34]} {[%emt 00:00:02]} 48.
Kg4 {[%clk 00:00:20]} Kg7 {[%clk 00:00:37]} {[%emt 00:00:04]} 49. Kxf3 {[%clk
00:00:23]} {[%emt 00:00:01]} Kf6 {[%clk 00:00:40]} {[%emt 00:00:02]} 50. Ke3
{[%clk 00:00:19]} {[%emt 00:00:08]} h5 {[%clk 00:00:43]} {[%emt 00:00:03]} 51.
f4 {[%clk 00:00:19]} {[%emt 00:00:05]} h4 {[%clk 00:00:45]} {[%emt 00:00:03]}
52. Kf3 {[%clk 00:00:22]} {[%emt 00:00:02]} h3 {[%clk 00:00:47]} {[%emt
00:00:02]} 53. e5+ {[%clk 00:00:19]} {[%emt 00:00:09]} Bxe5 {[%clk 00:00:44]}
{[%emt 00:00:09]} 54. fxe5+ {[%clk 00:00:23]} {[%emt 00:00:01]} Kxe5 {[%clk
00:00:47]} {[%emt 00:00:01]} 55. Kg3 {[%clk 00:00:27]} {[%emt 00:00:01]} Kd4
{[%clk 00:00:51]} {[%emt 00:00:01]} 56. Kxh3 {[%clk 00:00:31]} {[%emt
00:00:01]} Kxc4 {[%clk 00:00:55]} {[%emt 00:00:01]} 57. Kg3 {[%clk 00:00:35]}
{[%emt 00:00:02]} Kc3 {[%clk 00:00:59]} {[%emt 00:00:01]} 58. Kf3 {[%clk
00:00:38]} Kb2 {[%clk 00:01:03]} 59. Ke2 {[%clk 00:00:42]} {[%emt 00:00:01]}
Kxa2 {[%clk 00:01:07]} {[%emt 00:00:01]} 60. Kd3 {[%clk 00:00:46]} {[%emt
00:00:01]} Ka3 {[%clk 00:01:10]} {[%emt 00:00:02]} 61. Kc2 {[%clk 00:00:49]}
{[%emt 00:00:02]} b5 {[%clk 00:01:13]} {[%emt 00:00:02]} 62. Kb1 {[%clk
00:00:53]} {[%emt 00:00:01]} b4 {[%clk 00:01:15]} {[%emt 00:00:03]} 63. Ka1
{[%clk 00:00:57]} {[%emt 00:00:01]} b3 {[%clk 00:01:11]} {[%emt 00:00:09]} 64.
Kb1 {[%clk 00:01:01]} b2 {[%clk 00:01:15]} {[%emt 00:00:01]} 0-1

[Event "The Schackveckan 2023: Göteborg open"]
[Site "Göteborgs schackcentrum, Vegagatan 20, Gothenburg, Sweden"]
[Date "2023.08.11"]
[Round "3.13"]
[White "Havner, Arvid"]
[Black "Buzleta, Patrik"]
[Result "0-1"]
[TimeControl "15 minutes + 5 seconds per move from move one (Round 1 - 4) / 90 minutes + 30 seconds per move from move one (Round 5 - 8)"]
[WhiteFideId "1769308"]
[BlackFideId "1755463"]
[WhiteElo "1825"]
[BlackElo "1604"]

1. e4 {[%clk 00:15:09]} {[%emt 00:00:02]} e6 {[%clk 00:15:08]} {[%emt
00:00:02]} 2. d4 {[%clk 00:15:12]} {[%emt 00:00:02]} d6 {[%clk 00:15:11]}
{[%emt 00:00:02]} 3. c4 {[%clk 00:15:07]} {[%emt 00:00:10]} g6 {[%clk
00:15:14]} {[%emt 00:00:01]} 4. Nc3 {[%clk 00:15:11]} {[%emt 00:00:03]} Bg7
{[%clk 00:15:17]} {[%emt 00:00:01]} 5. Be3 {[%clk 00:15:15]} {[%emt 00:00:01]}
b6 {[%clk 00:15:20]} {[%emt 00:00:02]} 6. Be2 {[%clk 00:15:16]} {[%emt
00:00:04]} Bb7 {[%clk 00:15:24]} {[%emt 00:00:01]} 7. Qd2 {[%clk 00:15:06]}
{[%emt 00:00:14]} h6 {[%clk 00:15:27]} {[%emt 00:00:04]} 8. Nf3 {[%clk
00:14:49]} {[%emt 00:00:21]} Nd7 {[%clk 00:15:26]} {[%emt 00:00:06]} 9. a4
{[%clk 00:14:26]} {[%emt 00:00:28]} a6 {[%clk 00:15:29]} {[%emt 00:00:02]} 10.
a5 {[%clk 00:14:16]} {[%emt 00:00:14]} Qe7 {[%clk 00:15:27]} {[%emt 00:00:07]}
11. O-O {[%clk 00:13:04]} {[%emt 00:01:17]} Ngf6 {[%clk 00:15:25]} {[%emt
00:00:07]} 12. d5 {[%clk 00:12:26]} {[%emt 00:00:43]} Ng4 {[%clk 00:15:19]}
{[%emt 00:00:12]} 13. Bd4 {[%clk 00:11:59]} {[%emt 00:00:31]} e5 {[%clk
00:15:21]} {[%emt 00:00:03]} 14. Be3 {[%clk 00:12:03]} {[%emt 00:00:02]} bxa5
{[%clk 00:15:13]} {[%emt 00:00:12]} 15. Rxa5 {[%clk 00:11:52]} {[%emt
00:00:16]} Nxe3 {[%clk 00:15:12]} {[%emt 00:00:06]} 16. Qxe3 {[%clk 00:11:55]}
{[%emt 00:00:02]} O-O {[%clk 00:15:04]} {[%emt 00:00:13]} 17. Nd2 {[%clk
00:11:32]} {[%emt 00:00:28]} Qd8 {[%clk 00:14:48]} {[%emt 00:00:22]} 18. b4
{[%clk 00:11:27]} {[%emt 00:00:09]} f5 {[%clk 00:14:26]} {[%emt 00:00:26]} 19.
Nb3 {[%clk 00:10:59]} {[%emt 00:00:34]} f4 {[%clk 00:14:04]} {[%emt 00:00:28]}
20. Qd3 {[%clk 00:10:48]} {[%emt 00:00:16]} h5 {[%clk 00:13:30]} {[%emt
00:00:39]} 21. c5 {[%clk 00:10:30]} {[%emt 00:00:22]} Bc8 {[%clk 00:12:54]}
{[%emt 00:00:41]} 22. Rfa1 {[%clk 00:09:48]} {[%emt 00:00:47]} Nf6 {[%clk
00:12:24]} {[%emt 00:00:34]} 23. b5 {[%clk 00:09:18]} {[%emt 00:00:36]} Ng4
{[%emt 00:00:47]} 24. h3 {[%clk 00:08:53]} {[%emt 00:00:27]} Nf6 {[%clk
00:11:38]} {[%emt 00:00:13]} 25. cxd6 {[%clk 00:08:24]} {[%emt 00:00:34]} cxd6
{[%clk 00:11:13]} {[%emt 00:00:30]} 26. bxa6 {[%clk 00:07:50]} {[%emt
00:00:39]} g5 {[%clk 00:11:08]} {[%emt 00:00:10]} 27. Nb5 {[%clk 00:05:34]}
{[%emt 00:02:21]} g4 {[%clk 00:10:53]} {[%emt 00:00:21]} 28. h4 {[%clk
00:05:03]} {[%emt 00:00:35]} Nxe4 {[%clk 00:07:41]} {[%emt 00:03:18]} 29. g3
{[%clk 00:02:47]} {[%emt 00:02:22]} fxg3 {[%clk 00:06:48]} {[%emt 00:00:56]} 30.
fxg3 {[%clk 00:02:51]} {[%emt 00:00:02]} Qb6+ {[%clk 00:06:45]} {[%emt
00:00:08]} 31. N3d4 {[%clk 00:01:50]} {[%emt 00:01:06]} Nf2 {[%clk 00:05:49]}
{[%emt 00:01:02]} 32. Qc4 {[%clk 00:00:51]} {[%emt 00:01:03]} exd4 {[%clk
00:05:05]} {[%emt 00:00:49]} 33. Qc6 {[%clk 00:00:55]} {[%emt 00:00:02]} Qxc6
{[%clk 00:04:50]} {[%emt 00:00:19]} 34. dxc6 {[%clk 00:00:58]} {[%emt
00:00:04]} d3 {[%clk 00:04:46]} {[%emt 00:00:08]} 35. Bxd3 {[%clk 00:00:51]}
{[%emt 00:00:11]} Bxa1 {[%clk 00:04:27]} {[%emt 00:00:25]} 36. Bc4+ {[%clk
00:00:56]} Kg7 {[%clk 00:03:52]} {[%emt 00:00:39]} 37. Rxa1 {[%clk 00:00:48]}
{[%emt 00:00:08]} Nh3+ {[%clk 00:03:16]} {[%emt 00:00:45]} 38. Kh1 {[%clk
00:00:49]} {[%emt 00:00:03]} Rxa6 {[%clk 00:03:06]} {[%emt 00:00:16]} 39. Re1
{[%clk 00:00:28]} {[%emt 00:00:26]} Rxc6 {[%clk 00:02:31]} {[%emt 00:00:40]} 40.
Re7+ {[%clk 00:00:29]} {[%emt 00:00:03]} Kf6 {[%clk 00:02:21]} {[%emt
00:00:16]} 41. Rh7 {[%clk 00:00:10]} {[%emt 00:00:24]} Rxc4 {[%clk 00:02:02]}
{[%emt 00:00:23]} 42. Rh6+ {[%clk 00:00:14]} {[%emt 00:00:01]} Ke7 {[%clk
00:01:54]} {[%emt 00:00:14]} 43. Rh7+ {[%clk 00:00:12]} {[%emt 00:00:07]} Rf7
{[%clk 00:01:49]} {[%emt 00:00:10]} 44. Rxf7+ {[%clk 00:00:14]} {[%emt
00:00:03]} Ke6 {[%clk 00:01:01]} {[%emt 00:00:53]} 45. Rf1 {[%clk 00:00:00]}
{[%emt 00:00:15]} Bb7+ {[%clk 00:01:01]} {[%emt 00:00:02]} 46. Kh2 {[%emt
00:00:10]} Rc2+ {[%emt 00:00:02]} 47. Rf2 {[%clk 00:15:05]} {[%emt 00:00:02]}
Rxf2# {[%clk 00:15:05]} 0-1

[Event "The Schackveckan 2023: Göteborg open"]
[Site "Göteborgs schackcentrum, Vegagatan 20, Gothenburg, Sweden"]
[Date "2023.08.11"]
[Round "3.14"]
[White "Torres, Lucas"]
[Black "Degerfeldt, Sven"]
[Result "0-1"]
[TimeControl "15 minutes + 5 seconds per move from move one (Round 1 - 4) / 90 minutes + 30 seconds per move from move one (Round 5 - 8)"]
[WhiteFideId "1769464"]
[BlackFideId "1717430"]
[WhiteElo "1501"]
[BlackElo "1821"]

1. e4 {[%clk 00:15:08]} {[%emt 00:00:02]} c5 {[%clk 00:15:08]} {[%emt
00:00:02]} 2. Nc3 {[%clk 00:15:12]} {[%emt 00:00:01]} e6 {[%clk 00:15:12]} 3.
Nf3 {[%clk 00:14:59]} {[%emt 00:00:18]} Nc6 {[%clk 00:15:11]} {[%emt 00:00:06]}
4. Bb5 {[%clk 00:14:55]} {[%emt 00:00:08]} Qc7 {[%clk 00:15:11]} {[%emt
00:00:06]} 5. O-O {[%clk 00:14:37]} {[%emt 00:00:23]} d6 {[%clk 00:14:49]}
{[%emt 00:00:27]} 6. d4 {[%clk 00:14:35]} {[%emt 00:00:08]} cxd4 {[%clk
00:14:52]} {[%emt 00:00:02]} 7. Nxd4 {[%clk 00:14:38]} {[%emt 00:00:02]} Bd7
{[%clk 00:14:53]} {[%emt 00:00:03]} 8. Be3 {[%clk 00:14:01]} {[%emt 00:00:42]}
Nf6 {[%clk 00:14:53]} {[%emt 00:00:05]} 9. f3 {[%clk 00:13:52]} {[%emt
00:00:14]} Be7 {[%clk 00:14:56]} {[%emt 00:00:03]} 10. Qd2 {[%clk 00:13:47]}
{[%emt 00:00:10]} a6 {[%clk 00:14:46]} {[%emt 00:00:15]} 11. Ba4 {[%clk
00:13:31]} {[%emt 00:00:20]} O-O {[%clk 00:14:39]} {[%emt 00:00:13]} 12. Bb3
{[%clk 00:13:01]} {[%emt 00:00:36]} b5 {[%clk 00:14:31]} {[%emt 00:00:13]} 13.
a4 {[%clk 00:12:38]} {[%emt 00:00:27]} b4 {[%clk 00:14:25]} {[%emt 00:00:11]}
14. Nce2 {[%clk 00:12:34]} {[%emt 00:00:08]} Rab8 {[%clk 00:13:43]} {[%emt
00:00:48]} 15. Nxc6 {[%clk 00:12:28]} {[%emt 00:00:11]} Bxc6 {[%clk 00:13:46]}
{[%emt 00:00:02]} 16. Nd4 {[%clk 00:12:31]} {[%emt 00:00:02]} Bd7 {[%clk
00:13:44]} {[%emt 00:00:07]} 17. Rfd1 {[%clk 00:11:55]} {[%emt 00:00:42]} Qb7
{[%clk 00:13:05]} {[%emt 00:00:43]} 18. Rac1 {[%clk 00:11:10]} {[%emt
00:00:50]} Rfd8 {[%clk 00:13:06]} {[%emt 00:00:03]} 19. Qe2 {[%clk 00:10:52]}
{[%emt 00:00:24]} Rbc8 {[%clk 00:12:26]} {[%emt 00:00:46]} 20. Bc4 {[%clk
00:10:10]} {[%emt 00:00:47]} Ra8 {[%clk 00:12:29]} {[%emt 00:00:02]} 21. b3
{[%clk 00:10:09]} {[%emt 00:00:05]} e5 {[%clk 00:11:52]} {[%emt 00:00:42]} 22.
Nf5 {[%clk 00:09:49]} {[%emt 00:00:24]} Bxf5 {[%clk 00:11:56]} {[%emt
00:00:02]} 23. exf5 {[%clk 00:09:53]} {[%emt 00:00:02]} d5 {[%clk 00:11:59]}
{[%emt 00:00:02]} 24. Bd3 {[%clk 00:09:42]} {[%emt 00:00:16]} a5 {[%clk
00:11:48]} {[%emt 00:00:16]} 25. Bb5 {[%clk 00:09:28]} {[%emt 00:00:19]} d4
{[%clk 00:11:22]} {[%emt 00:00:29]} 26. Bg5 {[%clk 00:09:18]} {[%emt 00:00:16]}
h6 {[%clk 00:11:21]} {[%emt 00:00:08]} 27. Bh4 {[%clk 00:09:12]} {[%emt
00:00:11]} Nd5 {[%clk 00:11:16]} {[%emt 00:00:09]} 28. Bxe7 {[%clk 00:09:10]}
{[%emt 00:00:07]} Qxe7 {[%clk 00:11:19]} {[%emt 00:00:02]} 29. Bc6 {[%clk
00:08:42]} {[%emt 00:00:32]} Nc3 {[%clk 00:11:22]} {[%emt 00:00:03]} 30. Qc4
{[%clk 00:08:02]} {[%emt 00:00:46]} Rac8 {[%clk 00:10:48]} {[%emt 00:00:38]} 31.
Re1 {[%clk 00:07:59]} {[%emt 00:00:08]} Rd6 {[%clk 00:10:40]} {[%emt 00:00:13]}
32. Qc5 {[%clk 00:07:12]} {[%emt 00:00:50]} Rcxc6 {[%clk 00:10:29]} {[%emt
00:00:19]} 33. Qxa5 {[%clk 00:07:08]} {[%emt 00:00:07]} Nd5 {[%clk 00:09:40]}
{[%emt 00:00:56]} 34. f4 {[%clk 00:06:00]} {[%emt 00:01:13]} e4 {[%clk
00:09:17]} {[%emt 00:00:27]} 35. Rcd1 {[%clk 00:03:23]} {[%emt 00:02:42]} Ne3
{[%clk 00:08:38]} {[%emt 00:00:45]} 36. Rxd4 {[%clk 00:01:07]} {[%emt
00:02:22]} Rxd4 {[%clk 00:08:11]} {[%emt 00:00:31]} 37. Qa8+ {[%clk 00:01:08]}
{[%emt 00:00:04]} Kh7 {[%clk 00:08:14]} {[%emt 00:00:02]} 38. Qxc6 {[%clk
00:01:09]} {[%emt 00:00:03]} Rd1 {[%clk 00:07:17]} {[%emt 00:01:03]} 39. Rxd1
{[%clk 00:01:05]} {[%emt 00:00:10]} Nxd1 {[%clk 00:07:20]} {[%emt 00:00:02]} 40.
Qc4 {[%clk 00:00:58]} {[%emt 00:00:10]} Qa7+ {[%clk 00:07:01]} {[%emt
00:00:26]} 41. Kh1 {[%clk 00:00:32]} {[%emt 00:00:31]} Nf2+ {[%clk 00:06:56]}
{[%emt 00:00:09]} 42. Kg1 {[%clk 00:00:35]} {[%emt 00:00:03]} Nh3+ {[%clk
00:06:56]} {[%emt 00:00:04]} 0-1

[Event "The Schackveckan 2023: Göteborg open"]
[Site "Göteborgs schackcentrum, Vegagatan 20, Gothenburg, Sweden"]
[Date "2023.08.11"]
[Round "3.15"]
[White "Eldh, Hjalmar"]
[Black "Lindholm, Marcus"]
[Result "0-1"]
[TimeControl "15 minutes + 5 seconds per move from move one (Round 1 - 4) / 90 minutes + 30 seconds per move from move one (Round 5 - 8)"]
[WhiteFideId "1767968"]
[BlackFideId "1743473"]
[WhiteElo "1738"]
[BlackElo "1708"]

1. e4 {[%clk 00:15:09]} {[%emt 00:00:01]} c5 {[%clk 00:15:09]} {[%emt
00:00:01]} 2. Nf3 {[%clk 00:15:12]} {[%emt 00:00:01]} Nc6 {[%clk 00:15:13]}
{[%emt 00:00:02]} 3. Bb5 {[%clk 00:15:15]} {[%emt 00:00:02]} Nf6 {[%clk
00:15:15]} {[%emt 00:00:02]} 4. e5 {[%clk 00:15:15]} {[%emt 00:00:06]} Nd5
{[%clk 00:15:18]} {[%emt 00:00:02]} 5. O-O {[%clk 00:15:16]} {[%emt 00:00:04]}
g6 {[%clk 00:15:20]} {[%emt 00:00:02]} 6. Re1 {[%clk 00:15:17]} {[%emt
00:00:04]} Bg7 {[%clk 00:15:22]} {[%emt 00:00:03]} 7. c3 {[%clk 00:15:18]}
{[%emt 00:00:04]} O-O {[%clk 00:15:16]} {[%emt 00:00:12]} 8. d4 {[%clk
00:15:20]} {[%emt 00:00:03]} Nc7 {[%clk 00:15:15]} {[%emt 00:00:06]} 9. Bf1
{[%clk 00:15:17]} {[%emt 00:00:08]} cxd4 {[%clk 00:15:08]} {[%emt 00:00:12]} 10.
cxd4 {[%clk 00:15:19]} {[%emt 00:00:03]} d5 {[%clk 00:15:10]} {[%emt 00:00:02]}
11. Nc3 {[%clk 00:15:19]} {[%emt 00:00:05]} Bg4 {[%clk 00:14:52]} {[%emt
00:00:23]} 12. Be3 {[%clk 00:15:09]} {[%emt 00:00:15]} Ne6 {[%clk 00:14:53]}
{[%emt 00:00:04]} 13. Be2 {[%clk 00:15:06]} {[%emt 00:00:08]} f6 {[%clk
00:14:17]} {[%emt 00:00:41]} 14. Ng5 {[%clk 00:13:11]} {[%emt 00:02:01]} Bxe2
{[%clk 00:13:47]} {[%emt 00:00:35]} 15. Nxe6 {[%clk 00:13:13]} {[%emt
00:00:03]} Bxd1 {[%clk 00:13:49]} {[%emt 00:00:03]} 16. Nxd8 {[%clk 00:13:16]}
{[%emt 00:00:02]} Raxd8 {[%clk 00:13:49]} {[%emt 00:00:06]} 17. exf6 {[%clk
00:13:08]} {[%emt 00:00:12]} exf6 {[%clk 00:13:29]} {[%emt 00:00:25]} 18. Raxd1
{[%clk 00:13:09]} {[%emt 00:00:03]} f5 {[%clk 00:12:45]} {[%emt 00:00:49]} 19.
Bg5 {[%clk 00:13:02]} {[%emt 00:00:10]} Rd7 {[%clk 00:12:42]} {[%emt 00:00:10]}
20. a3 {[%clk 00:10:46]} {[%emt 00:02:22]} Bxd4 {[%clk 00:12:20]} {[%emt
00:00:27]} 21. Re6 {[%clk 00:09:18]} {[%emt 00:01:32]} Kg7 {[%clk 00:10:01]}
{[%emt 00:02:24]} 22. Rxc6 {[%clk 00:09:00]} {[%emt 00:00:24]} Bxf2+ {[%clk
00:10:03]} {[%emt 00:00:02]} 23. Kxf2 {[%clk 00:08:59]} {[%emt 00:00:02]} bxc6
{[%clk 00:10:08]} 24. Na4 {[%clk 00:08:45]} {[%emt 00:00:25]} f4 {[%clk
00:09:57]} {[%emt 00:00:16]} 25. Kf3 {[%clk 00:07:47]} {[%emt 00:01:02]} h6
{[%clk 00:09:51]} {[%emt 00:00:11]} 26. Bh4 {[%clk 00:07:48]} {[%emt 00:00:03]}
g5 {[%clk 00:09:50]} {[%emt 00:00:07]} 27. Bf2 {[%clk 00:07:50]} Re8 {[%clk
00:09:31]} {[%emt 00:00:26]} 28. Nc5 {[%clk 00:07:46]} {[%emt 00:00:10]} Rde7
{[%clk 00:09:29]} {[%emt 00:00:06]} 29. Rd2 {[%clk 00:07:40]} {[%emt 00:00:11]}
h5 {[%clk 00:09:01]} {[%emt 00:00:33]} 30. h3 {[%clk 00:07:34]} {[%emt
00:00:11]} Kg6 {[%clk 00:08:57]} {[%emt 00:00:10]} 31. b4 {[%clk 00:07:30]}
{[%emt 00:00:09]} Kf5 {[%clk 00:08:57]} {[%emt 00:00:05]} 32. g4+ {[%clk
00:07:29]} {[%emt 00:00:05]} fxg3 {[%clk 00:08:51]} {[%emt 00:00:12]} 33. Kxg3
{[%clk 00:06:59]} {[%emt 00:00:34]} Re2 {[%clk 00:08:33]} {[%emt 00:00:23]} 34.
Rd3 {[%clk 00:06:39]} {[%emt 00:00:25]} h4+ {[%clk 00:07:49]} {[%emt 00:00:49]}
35. Kf3 {[%clk 00:06:41]} {[%emt 00:00:03]} Kg6 {[%clk 00:07:29]} {[%emt
00:00:25]} 36. Be3 {[%clk 00:06:33]} {[%emt 00:00:13]} Rh2 {[%clk 00:07:14]}
{[%emt 00:00:20]} 37. Kg4 {[%clk 00:06:04]} {[%emt 00:00:35]} Rf8 {[%clk
00:06:49]} {[%emt 00:00:29]} 38. Rd2 {[%clk 00:06:03]} {[%emt 00:00:07]} Rxd2
{[%clk 00:06:40]} {[%emt 00:00:13]} 39. Bxd2 {[%clk 00:06:07]} Rf2 {[%clk
00:06:42]} {[%emt 00:00:03]} 40. Be3 {[%clk 00:06:06]} {[%emt 00:00:04]} Rg2+
{[%clk 00:06:42]} {[%emt 00:00:06]} 41. Kf3 {[%clk 00:06:10]} {[%emt 00:00:02]}
Rg3+ {[%clk 00:06:46]} {[%emt 00:00:01]} 42. Kf2 {[%clk 00:06:12]} {[%emt
00:00:03]} Rxh3 {[%clk 00:06:45]} {[%emt 00:00:05]} 43. Ne6 {[%clk 00:06:15]}
{[%emt 00:00:03]} Kf5 {[%clk 00:06:12]} {[%emt 00:00:37]} 44. Nd4+ {[%clk
00:06:14]} {[%emt 00:00:07]} Ke4 {[%clk 00:06:15]} {[%emt 00:00:02]} 45. Nc2
{[%clk 00:06:07]} {[%emt 00:00:13]} Rh2+ {[%clk 00:06:08]} {[%emt 00:00:11]} 46.
Kf1 {[%clk 00:06:09]} {[%emt 00:00:03]} Rxc2 {[%clk 00:06:11]} {[%emt
00:00:02]} 47. Bxa7 {[%clk 00:06:13]} {[%emt 00:00:01]} Ra2 {[%clk 00:06:14]}
{[%emt 00:00:02]} 48. Bc5 {[%clk 00:06:10]} {[%emt 00:00:07]} Rxa3 {[%clk
00:06:17]} {[%emt 00:00:03]} 49. Be7 {[%clk 00:06:14]} {[%emt 00:00:01]} Kf3
{[%clk 00:06:17]} {[%emt 00:00:04]} 50. Kg1 {[%clk 00:06:17]} {[%emt 00:00:02]}
g4 {[%clk 00:06:19]} {[%emt 00:00:04]} 51. Bxh4 {[%clk 00:06:18]} {[%emt
00:00:03]} g3 {[%clk 00:06:22]} {[%emt 00:00:03]} 52. Bf6 {[%clk 00:06:21]}
{[%emt 00:00:02]} Rb3 {[%clk 00:06:22]} {[%emt 00:00:03]} 53. Bb2 {[%clk
00:06:10]} {[%emt 00:00:18]} Rxb2 {[%clk 00:06:25]} {[%emt 00:00:02]} 54. b5
{[%clk 00:06:14]} Rb1# {[%clk 00:06:28]} {[%emt 00:00:02]} 0-1